fUST/lending_fUST_20250730
["ID","MTS","AMOUNT","RATE_DAILY","PERIOD"]
[376095635,1753861842350,-500.0,0.00021973,2]
[376095637,1753861842369,-500.0,0.00021973,2]
[376095639,1753861842390,-500.0,0.00021973,2]
[376095641,1753861842401,-503.56560902,0.00021973,2]
[376095643,1753861842411,-500.0,0.00021973,2]
[376095645,1753861842421,-500.0,0.00021973,2]
[376095647,1753861842431,-61730.87,0.00022,2]
[376095649,1753861842440,-167.0,0.00022,2]
[376095651,1753861842450,-2320.28,0.00022,2]
[376095653,1753861842459,-3566.34,0.00022,7]
[376095655,1753861842469,-1731.05,0.00022,7]
[376095657,1753861842479,-163.0,0.00022,2]
[376095659,1753861842489,-1000.0,0.00022021,2]
[376095661,1753861842499,-1000.0,0.00022021,2]
[376095663,1753861842509,-1000.0,0.00022021,2]
[376095665,1753861842519,-501.62526512,0.00022021,2]
[376095667,1753861842528,-1000.0,0.00022021,2]
[376095669,1753861842537,-1000.0,0.00022021,2]
[376095671,1753861842547,-1000.0,0.00022021,2]
[376095673,1753861842557,-1000.0,0.00022021,2]
[376095674,1753861842566,-1000.0,0.00022021,2]
[376095675,1753861842576,-500.83420291,0.00022021,2]
[376095677,1753861842587,-500.0,0.00022021,2]
[376095678,1753861842597,-1000.0,0.00022021,2]
[376095679,1753861842606,-2146.0,0.00022027,2]
[376095680,1753861842615,-970.0,0.00022027,2]
[376095681,1753861842625,-1000.27161453,0.0002204,2]
[376095682,1753861842634,-3034.35229805,0.00022072,6]
[376095683,1753861842643,-1027.21494323,0.00022108,2]
[376095684,1753861842652,-460.0,0.00022134,2]
[376095685,1753861842661,-507.61,0.00022135,2]
[376095686,1753861842671,-460.0,0.00022135,2]
[376095687,1753861842680,-460.1,0.00022135,2]
[376095688,1753861842690,-1174.19,0.00022137,2]
[376095689,1753861842700,-460.0,0.00022137,2]
[376095690,1753861842710,-830.98,0.00022137,2]
[376095691,1753861842720,-460.0,0.00022137,2]
[376095692,1753861842729,-596.02,0.00022137,2]
[376095693,1753861842739,-615.74,0.00022137,2]
[376095694,1753861842749,-501.43,0.00022137,2]
[376095695,1753861842763,-460.0,0.00022138,2]
[376095696,1753861842774,-578.14,0.00022138,2]
[376095697,1753861842783,-59440.10703324,0.00022171,2]
[376095698,1753861842793,-500.0,0.00022179,2]
[376095699,1753861842806,-500.0,0.00022179,2]
[376095700,1753861842815,-500.0,0.00022179,2]
[376095701,1753861842824,-286.03217571,0.00022179,2]
[376095703,1753861842835,-560.0,0.00022223,2]
[376095704,1753861842845,-198.0,0.00022261,2]
[376095706,1753861842855,-151.0,0.00022261,2]
[376095707,1753861842864,-198.0,0.00022261,2]
[376095709,1753861842874,-500.0,0.00022261,2]
[376095712,1753861842883,-3034.35229805,0.00022314,7]
[376095714,1753861842892,-587.0,0.00022397,2]
[376095715,1753861842902,-2000.0,0.000224,2]
[376095717,1753861842911,-460.0,0.00022408,2]
[376095720,1753861842921,-507.61,0.00022409,2]
[376095721,1753861842930,-460.0,0.00022409,2]
[376095723,1753861842939,-460.1,0.00022409,2]
[376095725,1753861842949,-1174.19,0.00022411,2]
[376095727,1753861842958,-460.0,0.00022411,2]
[376095729,1753861842967,-830.98,0.00022411,2]
[376095731,1753861842976,-460.0,0.00022411,2]
[376095733,1753861842986,-596.02,0.00022411,2]
[376095735,1753861842996,-615.74,0.00022411,2]
[376095737,1753861843005,-501.43,0.00022411,2]
[376095739,1753861843014,-460.0,0.00022412,2]
[376095741,1753861843024,-578.14,0.00022412,2]
[376095743,1753861843033,-250.0,0.00022439,2]
[376095745,1753861843043,-573.52765742,0.00022521,2]
[376095747,1753861843053,-1000.0,0.00022521,2]
[376095749,1753861843062,-1000.0,0.00022521,2]
[376095751,1753861843072,-1012.94208982,0.00022521,2]
[376095775,1753861843189,-1000.0,0.00022521,2]
[376095778,1753861843199,-1000.0,0.00022521,2]
[376095781,1753861843208,-151.0,0.00022535,2]
[376095783,1753861843217,-500.0,0.00022535,2]
[376095786,1753861843227,-3034.35229805,0.00022555,7]
[376095788,1753861843237,-2320.28,0.00022566,2]
[376095790,1753861843246,-1500.0,0.00022568,2]
[376095792,1753861843257,-652.39099657,0.00022568,2]
[376095795,1753861843267,-500.0,0.00022568,2]
[376095796,1753861843276,-1500.0,0.00022568,2]
[376095798,1753861843285,-1027.21494323,0.00022589,2]
[376095801,1753861843295,-2200.0,0.00022591,2]
[376095803,1753861843304,-1475.99321028,0.000226,4]
[376095804,1753861843314,-460.0,0.00022682,2]
[376095806,1753861843323,-507.61,0.00022683,2]
[376095808,1753861843333,-460.0,0.00022683,2]
[376095811,1753861843343,-460.1,0.00022683,2]
[376095812,1753861843352,-1174.19,0.00022685,2]
[376095815,1753861843362,-460.0,0.00022685,2]
[376095816,1753861843371,-830.98,0.00022685,2]
[376095818,1753861843380,-460.0,0.00022685,2]
[376095820,1753861843389,-596.02,0.00022685,2]
[376095822,1753861843398,-615.74,0.00022685,2]
[376095824,1753861843407,-501.43,0.00022685,2]
[376095826,1753861843416,-460.0,0.00022686,2]
[376095828,1753861843426,-578.14,0.00022686,2]
[376095830,1753861843435,-154.91865829,0.00022701,2]
[376095832,1753861843444,-660.0,0.0002277,2]
[376095834,1753861843455,-3034.35229805,0.00022797,7]
[376095836,1753861843464,-151.0,0.00022809,2]
[376095839,1753861843474,-500.0,0.00022809,2]
[376095841,1753861843483,-44000.0,0.0002287,2]
[376095843,1753861843493,-150.0,0.00022873,2]
[376095845,1753861843502,-348.32221385,0.00022873,2]
[376095846,1753861843512,-500.0,0.00022873,2]
[376095849,1753861843522,-500.0,0.00022873,2]
[376095851,1753861843531,-500.0,0.00022873,2]
[376095853,1753861843541,-500.0,0.00022873,2]
[376095855,1753861843550,-500.0,0.00022873,2]
[376095856,1753861843561,-500.0,0.00022873,2]
[376095858,1753861843571,-500.0,0.00022873,2]
[376095861,1753861843580,-500.0,0.00022873,2]
[376095862,1753861843591,-1352.266404,0.00022898,2]
[376095864,1753861843601,-7092.50593747,0.000229,2]
[376095867,1753861843611,-143198.35174604,0.000229,7]
[376095868,1753861843620,-460.0,0.00022956,2]
[376095871,1753861843630,-507.61,0.00022957,2]
[376095873,1753861843640,-460.0,0.00022957,2]
[376095874,1753861843649,-460.1,0.00022957,2]
[376095877,1753861843659,-1174.19,0.00022959,2]
[376095878,1753861843668,-460.0,0.00022959,2]
[376095880,1753861843678,-830.98,0.00022959,2]
[376095882,1753861843687,-460.0,0.00022959,2]
[376095885,1753861843697,-596.02,0.00022959,2]
[376095887,1753861843707,-615.74,0.00022959,2]
[376095889,1753861843716,-501.43,0.00022959,2]
[376095890,1753861843726,-455.50640224,0.0002296,2]
[376095892,1753861843735,-578.14,0.0002296,2]
[376095894,1753861843745,-4121.39056972,0.00022978,2]
[376095896,1753861843755,-2526.94284714,0.0002298,2]
[376095899,1753861843767,-160.0,0.00023,3]
[376095900,1753861843776,-1380.88,0.00023,2]
[376095902,1753861843786,-1967.96037793,0.00023,2]
[376095905,1753861843795,-9810.06450645,0.00023,2]
[376095906,1753861843805,-835.44231575,0.00023,15]
[376095908,1753861843815,-4865.56506389,0.00023,2]
[376095910,1753861843824,-25123.27414044,0.00023,2]
[376095913,1753861843836,-1337.90861257,0.00023,2]
[376095914,1753861843846,-1723.31409207,0.00023,3]
[376095916,1753861843855,-501.83333416,0.00023,8]
[376095918,1753861843864,-500.0,0.00023,8]
[376095920,1753861843873,-160.0,0.00023,2]
[376095922,1753861843883,-151.0,0.00023,7]
[376095924,1753861843892,-160.0,0.00023,3]
[376095926,1753861843902,-526.76118213,0.00023,3]
[376095928,1753861843912,-216.14611358,0.00023,3]
[376095930,1753861843921,-150.0,0.00023024,2]
[376095932,1753861843931,-3034.35229805,0.00023038,8]
[376095934,1753861843940,-1500.0,0.00023068,2]
[376095936,1753861843950,-1011.5459767,0.00023068,2]
[376095938,1753861843959,-1000.0,0.00023068,2]
[376095940,1753861843969,-387.34131079,0.00023068,2]
[376095942,1753861843978,-247.06957659,0.00023083,2]
[376095944,1753861843988,-500.0,0.00023083,2]
[376095946,1753861843998,-500.0,0.00023106,2]
[376095948,1753861844007,-500.48698167,0.00023106,2]
[376095950,1753861844016,-500.0,0.00023106,2]
[376095952,1753861844025,-500.0,0.00023106,2]
[376095954,1753861844035,-408.14500492,0.00023106,2]
[376095956,1753861844044,-500.0,0.00023106,2]
[376095958,1753861844054,-2000.0,0.00023116,2]
[376095960,1753861844063,-1446.89120276,0.00023116,2]
[376095962,1753861844073,-2320.28,0.00023133,2]
[376095964,1753861844084,-1000.27161453,0.00023138,2]
[376095966,1753861844093,-224.830837,0.00023153,2]
[376095968,1753861844103,-200.0,0.0002318,15]
[376095970,1753861844112,-200.0,0.0002318,15]
[376095972,1753861844122,-200.0,0.0002318,15]
[376095974,1753861844131,-200.0,0.0002318,15]
[376095976,1753861844141,-200.0,0.0002318,15]
[376095978,1753861844151,-200.0,0.0002318,15]
[376095980,1753861844160,-200.0,0.0002318,15]
[376095982,1753861844170,-200.0,0.0002318,15]
[376095984,1753861844180,-200.0,0.0002318,15]
[376095986,1753861844190,-200.0,0.0002318,15]
[376095988,1753861844199,-200.0,0.0002318,15]
[376095990,1753861844208,-200.0,0.0002318,15]
[376095992,1753861844218,-200.0,0.0002318,15]
[376095993,1753861844228,-200.0,0.0002318,15]
[376095994,1753861844237,-200.0,0.0002318,15]
[376095996,1753861844247,-200.0,0.0002318,15]
[376095998,1753861844257,-200.0,0.0002318,15]
[376096000,1753861844266,-200.0,0.0002318,15]
[376096002,1753861844280,-200.0,0.0002318,15]
[376096004,1753861844300,-200.0,0.0002318,15]
[376096005,1753861844313,-200.0,0.0002318,15]
[376096006,1753861844322,-200.0,0.0002318,15]
[376096007,1753861844333,-200.0,0.0002318,15]
[376096008,1753861844342,-200.0,0.0002318,15]
[376096009,1753861844352,-200.0,0.0002318,15]
[376096010,1753861844361,-200.0,0.0002318,15]
[376096011,1753861844371,-200.0,0.0002318,15]
[376096012,1753861844381,-200.0,0.0002318,15]
[376096013,1753861844391,-200.0,0.0002318,15]
[376096014,1753861844400,-200.0,0.0002318,15]
[376096015,1753861844410,-264.0,0.0002318,15]
[376096016,1753861844420,-3566.34,0.000232,7]
[376096017,1753861844429,-1731.05,0.000232,7]
[376096018,1753861844439,-460.0,0.0002323,2]
[376096019,1753861844449,-507.61,0.00023231,2]
[376096020,1753861844459,-460.0,0.00023231,2]
[376096021,1753861844468,-460.1,0.00023231,2]
[376096022,1753861844477,-1174.19,0.00023233,2]
[376096023,1753861844487,-460.0,0.00023233,2]
[376096024,1753861844497,-830.98,0.00023233,2]
[376096025,1753861844507,-380.6,0.00023233,2]
[376096026,1753861844517,-596.02,0.00023233,2]
[376096027,1753861844527,-615.74,0.00023233,2]
[376096028,1753861844536,-501.43,0.00023233,2]
[376096029,1753861844546,-578.14,0.00023234,2]
[376096030,1753861844556,-3034.35229805,0.00023279,8]
[376096031,1753861844565,-500.0,0.00023287,2]
[376096032,1753861844574,-40775.63881467,0.000233,2]
[376096033,1753861844593,-20955.23118533,0.000233,2]
[376096034,1753861844603,-166.259912,0.000233,5]
[376096036,1753861844612,-760.0,0.00023318,2]
[376096039,1753861844622,-500.0,0.00023357,2]
[376096042,1753861844631,-2000.0,0.000234,2]
[376096044,1753861844640,-31085.24246361,0.000234,2]
[376096046,1753861844649,-279.52819293,0.00023421,2]
[376096048,1753861844658,-507.94204418,0.00023421,2]
[376096050,1753861844667,-1000.0,0.00023421,2]
[376096052,1753861844676,-1000.0,0.00023421,2]
[376096054,1753861844686,-1000.0,0.00023421,2]
[376096055,1753861844695,-506.5191804,0.00023421,2]
[376096056,1753861844705,-1000.0,0.00023421,2]
[376096057,1753861844714,-1000.0,0.000235,2]
[376096058,1753861844723,-460.0,0.00023504,2]
[376096059,1753861844733,-507.61,0.00023505,2]
[376096060,1753861844743,-460.0,0.00023505,2]
[376096061,1753861844752,-460.1,0.00023505,2]
[376096062,1753861844765,-1174.19,0.00023507,2]
[376096063,1753861844774,-460.0,0.00023507,2]
[376096064,1753861844783,-830.98,0.00023507,2]
[376096065,1753861844793,-596.02,0.00023507,2]
[376096066,1753861844802,-615.74,0.00023507,2]
[376096067,1753861844811,-501.43,0.00023507,2]
[376096068,1753861844821,-578.14,0.00023508,2]
[376096069,1753861844830,-3034.35229805,0.00023521,9]
[376096070,1753861844843,-315.92,0.00023561,2]
[376096071,1753861844852,-315.92,0.00023561,2]
[376096072,1753861844861,-315.92,0.00023561,2]
[376096073,1753861844871,-315.92,0.00023561,2]
[376096074,1753861844881,-315.92,0.00023561,2]
[376096075,1753861844890,-315.92,0.00023561,2]
[376096076,1753861844900,-315.92,0.00023561,2]
[376096077,1753861844909,-315.92,0.00023561,2]
[376096078,1753861844919,-315.92,0.00023561,2]
[376096079,1753861844928,-315.92,0.00023561,2]
[376096080,1753861844937,-315.92,0.00023561,2]
[376096081,1753861844947,-315.92,0.00023561,2]
[376096082,1753861844956,-315.92,0.00023561,2]
[376096083,1753861844965,-315.92,0.00023561,2]
[376096084,1753861844975,-315.92,0.00023561,2]
[376096085,1753861844984,-315.92,0.00023561,2]
[376096086,1753861844994,-315.92,0.00023561,2]
[376096087,1753861845004,-315.92,0.00023561,2]
[376096088,1753861845014,-300.0,0.00023571,2]
[376096089,1753861845023,-2000.0,0.00023616,2]
[376096090,1753861845033,-500.0,0.00023631,2]
[376096091,1753861845042,-156.426133,0.00023633,15]
[376096092,1753861845051,-1000.0,0.00023654,2]
[376096093,1753861845060,-2018.04401309,0.00023664,2]
[376096094,1753861845070,-1402.776555,0.0002368,5]
[376096095,1753861845079,-2320.28,0.00023699,2]
[376096096,1753861845091,-1000.0,0.000237,5]
[376096097,1753861845100,-1000.0,0.0002372,5]
[376096098,1753861845109,-1000.0,0.0002374,5]
[376096099,1753861845119,-1000.0,0.0002376,5]
[376096100,1753861845129,-3034.35229805,0.00023762,9]
[376096101,1753861845138,-182.06710764,0.00023778,2]
[376096102,1753861845147,-507.61,0.00023779,2]
[376096103,1753861845155,-460.0,0.00023779,2]
[376096104,1753861845165,-460.1,0.00023779,2]
[376096105,1753861845175,-315.92,0.0002378,2]
[376096106,1753861845184,-1000.0,0.0002378,5]
[376096107,1753861845194,-1174.19,0.00023781,2]
[376096108,1753861845203,-460.0,0.00023781,2]
[376096109,1753861845213,-830.98,0.00023781,2]
[376096110,1753861845223,-596.02,0.00023781,2]
[376096111,1753861845232,-615.74,0.00023781,2]
[376096112,1753861845242,-501.43,0.00023781,2]
[376096113,1753861845251,-578.14,0.00023782,2]
[376096114,1753861845261,-1000.0,0.000238,5]
[376096115,1753861845270,-2600.71,0.00023806,7]
[376096116,1753861845279,-860.0,0.00023866,2]
[376096117,1753861845289,-15373.27440078,0.0002387,2]
[376096118,1753861845359,-1591.16679297,0.0002387,2]
[376096119,1753861845390,-460.0,0.00019123,2]
[376096120,1753861845399,-460.0,0.00019397,2]
[376096121,1753861845409,-460.0,0.00019671,2]
[376096122,1753861845418,-6630.54873063,0.0002387,2]
[376096123,1753861845428,-60161.43264313,0.0002387,2]
[376096124,1753861845437,-847.8504068,0.0002387,2]
[376096125,1753861845447,-200.0,0.00023873,2]
[376096126,1753861845456,-500.0,0.00023873,2]
[376096127,1753861845466,-2600.72,0.00023873,7]
[376096128,1753861845476,-500.0,0.00023905,2]
[376096129,1753861845485,-2600.71,0.00023906,7]
[376096130,1753861845495,-208.0,0.0002392,9]
[376096132,1753861845505,-367.0,0.00023951,2]
[376096133,1753861845514,-1500.0,0.00023968,2]
[376096134,1753861845524,-1500.0,0.00023968,2]
[376096135,1753861845534,-1500.0,0.00023968,2]
[376096136,1753861845543,-265.51548543,0.00023968,2]
[376096137,1753861845553,-2600.72,0.00023973,7]
[376096138,1753861845562,-179.83527028,0.00024,7]
[376096139,1753861845572,-526.67226028,0.00024,7]
[376096140,1753861845581,-157.0,0.00024,14]
[376096141,1753861845592,-160.0,0.00024,7]
[376096142,1753861845602,-160.0,0.00024,7]
[376096143,1753861845611,-1696.23511333,0.00024,2]
[376096144,1753861845621,-4530.97084886,0.00024,2]
[376096145,1753861845633,-767.091838,0.00024,2]
[376096146,1753861845644,-737.91395628,0.00024,2]
[376096147,1753861845656,-4129.31088533,0.00024,2]
[376096148,1753861845665,-162.18034773,0.00024,2]
[376096149,1753861845675,-160.0,0.00024,7]
[376096150,1753861845684,-245.40621939,0.00024,60]
[376096152,1753861845694,-160.0,0.00024,7]
[376096154,1753861845703,-841.2246943,0.00024,7]
[376096155,1753861845712,-160.0,0.00024,7]
[376096156,1753861845722,-160.0,0.00024,7]
[376096157,1753861845731,-160.0,0.00024,7]
[376096158,1753861845741,-526.76118213,0.00024,7]
[376096159,1753861845750,-216.14611358,0.00024,7]
[376096160,1753861845762,-3034.35229805,0.00024003,10]
[376096161,1753861845771,-660.89700903,0.00024006,7]
[376096162,1753861845783,-1939.81299097,0.00024006,7]
[376096163,1753861845792,-171.57,0.00024026,2]
[376096164,1753861845803,-281.6545734,0.00024027,30]
[376096165,1753861845812,-507.61,0.00024053,2]
[376096166,1753861845821,-371.13575483,0.00024053,2]
[376096191,1753861846178,-460.0,0.00019945,2]
[376096193,1753861846188,-595.45,0.00020219,2]
[376096195,1753861846199,-200.0,0.00021901,15]
[376096197,1753861846208,-200.0,0.00021901,15]
[376096199,1753861846218,-11551.18,0.00022,7]
[376096201,1753861846228,-151.0,0.00022261,2]
[376096203,1753861846237,-4491.19576279,0.000232,7]
[376096206,1753861846255,-200.0,0.00021901,15]
[376096208,1753861846264,-2428.44,0.000232,7]
[376096210,1753861846276,-4631.54423721,0.000232,7]
[376096212,1753861846286,-88.86424517,0.00024053,2]
[376096214,1753861846295,-460.1,0.00024053,2]
[376096216,1753861846305,-315.92,0.00024054,2]
[376096218,1753861846314,-1174.19,0.00024055,2]
[376096221,1753861846324,-454.03017134,0.00024055,2]
[376096237,1753861846467,-4746.19,0.0002149,10]
[376096239,1753861846476,-200.0,0.00021901,15]
[376096241,1753861846486,-151.0,0.00022261,2]
[376096243,1753861846495,-5.96982866,0.00024055,2]
[376096245,1753861846506,-830.98,0.00024055,2]
[376096247,1753861846516,-596.02,0.00024055,2]
[376096249,1753861846526,-615.74,0.00024055,2]
[376096250,1753861846535,-501.43,0.00024055,2]
[376096253,1753861846545,-578.14,0.00024056,2]
[376096255,1753861846555,-500.0,0.0002407,2]
[376096256,1753861846564,-1000.0,0.0002407,2]
[376096258,1753861846573,-500.0,0.00024072,2]
[376096260,1753861846583,-2600.72,0.00024073,7]
[376096262,1753861846593,-1000.0,0.00024081,2]
[376096264,1753861846602,-2600.71,0.00024106,7]
[376096267,1753861846612,-600.0,0.00024109,2]
[376096269,1753861846621,-450.0,0.00024119,2]
[376096270,1753861846630,-1200.0,0.0002415,2]
[376096273,1753861846640,-151.0,0.00024164,7]
[376096275,1753861846650,-2500.0,0.00024164,2]
[376096277,1753861846660,-2600.72,0.00024173,7]
[376096279,1753861846669,-500.0,0.00024179,2]
[376096281,1753861846678,-1200.0,0.00024194,2]
[376096283,1753861846687,-1500.0,0.00024202,2]
[376096285,1753861846697,-2600.71,0.00024206,7]
[376096287,1753861846706,-1000.0,0.00024207,2]
[376096289,1753861846716,-1000.27161453,0.00024236,2]
[376096291,1753861846725,-2619.39033718,0.00024245,10]
[376097780,1753861900047,209.61531,0.00013699,2]
[376097781,1753862186260,230.715761,0.00017957,2]
[376097782,1753862196304,375.10185551,0.00018747,2]
[376097783,1753862401588,328.21412351,0.00018746,2]
[376097784,1753862612175,412.22130994,0.00018745,2]
[376097785,1753862715025,151.00010633,0.00026,120]
[376097786,1753862817898,360.69364618,0.00018745,2]
[376097787,1753862913694,211.662697,0.00013699,2]
[376097797,1753863029245,315.60694039,0.00018745,2]
[376097842,1753863032432,-1200.0,0.00018843,2]
[376097844,1753863032443,-460.0,0.00018844,2]
[376097846,1753863032453,-460.0,0.00018844,2]
[376097848,1753863032462,-460.0,0.00018844,2]
[376097850,1753863032472,-1384.04,0.00018844,2]
[376097852,1753863032482,-582.32,0.00018844,2]
[376097854,1753863032492,-460.0,0.00018844,2]
[376097857,1753863032505,-460.0,0.00018844,2]
[376097858,1753863032516,-460.0,0.00018844,2]
[376097859,1753863032526,-464.89498817,0.00018844,2]
[376097860,1753863032535,-1181.35,0.00018844,2]
[376097861,1753863032545,-460.0,0.00018844,2]
[376097862,1753863032556,-460.0,0.00018844,2]
[376097863,1753863032566,-460.0,0.00018844,2]
[376097864,1753863032577,-460.0,0.00018844,2]
[376097865,1753863032590,-460.0,0.00018844,2]
[376097866,1753863032600,-522.64,0.00018844,2]
[376097867,1753863032611,-460.0,0.00018844,2]
[376097868,1753863032621,-460.0,0.00018844,2]
[376097869,1753863032632,-460.0,0.00018844,2]
[376097870,1753863032642,-460.0,0.00018844,2]
[376097871,1753863032652,-460.0,0.00018845,2]
[376097872,1753863032662,-1000.0,0.00018845,2]
[376097873,1753863032672,-293.7130657,0.00018845,2]
[376097874,1753863032682,-460.0,0.00018845,2]
[376097875,1753863032692,-460.0,0.00018845,2]
[376097876,1753863032702,-424.88526047,0.00018845,2]
[376097877,1753863032711,-500.0,0.00018845,2]
[376097878,1753863032723,-460.0,0.00018845,2]
[376097879,1753863032733,-460.0,0.00018845,2]
[376097880,1753863032743,-460.0,0.00018845,2]
[376097881,1753863032752,-460.0,0.00018845,2]
[376097882,1753863032763,-460.0,0.00018845,2]
[376097883,1753863032773,-460.0,0.00018845,2]
[376097884,1753863032783,-460.0,0.00018845,2]
[376097885,1753863032793,-460.0,0.00018845,2]
[376097886,1753863032803,-460.0,0.00018845,2]
[376097887,1753863032813,-460.0,0.00018845,2]
[376097888,1753863032823,-460.0,0.00018845,2]
[376097889,1753863032834,-460.0,0.00018845,2]
[376097890,1753863032844,-460.0,0.00018845,2]
[376097891,1753863032854,-463.78968443,0.00018845,2]
[376097892,1753863032865,-460.0,0.00018845,2]
[376097893,1753863032876,-460.0,0.00018845,2]
[376097894,1753863032886,-462.88615284,0.00018845,2]
[376097895,1753863032896,-460.0,0.00018845,2]
[376097896,1753863032905,-460.0,0.00018845,2]
[376097897,1753863032915,-460.0,0.00018845,2]
[376097898,1753863032925,-562.95,0.00018845,2]
[376097899,1753863032935,-460.0,0.00018845,2]
[376097900,1753863032946,-460.0,0.00018845,2]
[376097901,1753863032955,-460.0,0.00018845,2]
[376097902,1753863032967,-460.0,0.00018845,2]
[376097903,1753863032977,-460.0,0.00018845,2]
[376097904,1753863032988,-460.0,0.00018845,2]
[376097905,1753863032998,-460.0,0.00018845,2]
[376097906,1753863033008,-462.06136971,0.00018845,2]
[376097907,1753863033018,-460.0,0.00018845,2]
[376097908,1753863033028,-460.0,0.00018845,2]
[376097909,1753863033038,-460.0,0.00018845,2]
[376097910,1753863033047,-460.0,0.00018845,2]
[376097911,1753863033058,-460.0,0.00018845,2]
[376097912,1753863033068,-460.0,0.00018845,2]
[376097913,1753863033080,-460.0,0.00018845,2]
[376097914,1753863033090,-460.0,0.00018845,2]
[376097915,1753863033100,-460.0,0.00018845,2]
[376097916,1753863033114,-460.0,0.00018845,2]
[376097917,1753863033125,-482.74680885,0.00018845,2]
[376097918,1753863033136,-460.0,0.00018845,2]
[376097919,1753863033146,-233.60337203,0.00018845,2]
[376097920,1753863033158,-460.0,0.00018845,2]
[376097921,1753863033168,-460.0,0.00018845,2]
[376097922,1753863033178,-462.77102871,0.00018845,2]
[376097923,1753863033188,-460.0,0.00018845,2]
[376097924,1753863033199,-460.0,0.00018845,2]
[376097925,1753863033209,-460.0,0.00018845,2]
[376097926,1753863033219,-460.0,0.00018845,2]
[376097927,1753863033229,-460.0,0.00018845,2]
[376097928,1753863033239,-460.0,0.00018845,2]
[376097929,1753863033248,-460.0,0.00018845,2]
[376097930,1753863033258,-460.0,0.00018845,2]
[376097931,1753863033268,-460.0,0.00018845,2]
[376097932,1753863033278,-460.0,0.00018845,2]
[376097933,1753863033288,-460.0,0.00018845,2]
[376097934,1753863033298,-460.0,0.00018845,2]
[376097935,1753863033308,-513.92,0.00018845,2]
[376097936,1753863033318,-460.0,0.00018845,2]
[376097937,1753863033328,-460.0,0.00018845,2]
[376097938,1753863033340,-1822.42,0.00018845,2]
[376097939,1753863033350,-460.0,0.00018845,2]
[376097940,1753863033360,-460.0,0.00018845,2]
[376097941,1753863033370,-460.0,0.00018845,2]
[376097942,1753863033380,-460.0,0.00018845,2]
[376097943,1753863033389,-460.0,0.00018845,2]
[376097944,1753863033399,-460.0,0.00018845,2]
[376097945,1753863033409,-460.0,0.00018845,2]
[376097946,1753863033422,-460.0,0.00018845,2]
[376097947,1753863033432,-460.0,0.00018845,2]
[376097948,1753863033441,-460.0,0.00018845,2]
[376097949,1753863033452,-460.0,0.00018845,2]
[376097950,1753863033462,-460.0,0.00018845,2]
[376097951,1753863033472,-460.0,0.00018845,2]
[376097952,1753863033482,-460.0,0.00018845,2]
[376097953,1753863033492,-460.0,0.00018845,2]
[376097954,1753863033502,-460.0,0.00018845,2]
[376097955,1753863033513,-460.0,0.00018845,2]
[376097956,1753863033524,-460.0,0.00018845,2]
[376097957,1753863033534,-460.0,0.00018845,2]
[376097958,1753863033545,-460.0,0.00018845,2]
[376097959,1753863033555,-460.0,0.00018845,2]
[376097960,1753863033566,-460.0,0.00018845,2]
[376097961,1753863033577,-460.0,0.00018845,2]